fUSD/lending_fUSD_20250211
["ID","MTS","AMOUNT","RATE_DAILY","PERIOD"]
[352755145,1739292668981,-162.045334,0.000169,2]
[352755146,1739292668991,-162.045334,0.000169,2]
[352755147,1739292669001,-162.045334,0.000169,2]
[352755148,1739292669014,-162.045338,0.000169,2]
[352755149,1739292669024,-411.33715,0.000169,2]
[352755150,1739292669034,-411.33715,0.000169,2]
[352755151,1739292669044,-411.33715,0.000169,2]
[352755152,1739292669054,-411.33715,0.000169,2]
[352755153,1739292669064,-411.33715,0.000169,2]
[352755154,1739292669075,-411.337153,0.000169,2]
[352755155,1739292669084,-312.345054,0.000169,2]
[352755156,1739292669094,-312.345054,0.000169,2]
[352755157,1739292669104,-312.345054,0.000169,2]
[352755158,1739292669114,-151.0,0.000169,2]
[352755159,1739292669124,-151.0,0.000169,2]
[352755160,1739292669134,-151.0,0.000169,2]
[352755161,1739292669143,-312.345054,0.000169,2]
[352755162,1739292669153,-312.345054,0.000169,2]
[352755163,1739292669163,-312.345056,0.000169,2]
[352755164,1739292669174,-151.0,0.000169,2]
[352755165,1739292669185,-151.0,0.000169,2]
[352755166,1739292669195,-151.0,0.000169,2]
[352755167,1739292669205,-151.0,0.000169,2]
[352755168,1739292669218,-151.0,0.000169,2]
[352755169,1739292669227,-151.0,0.000169,2]
[352755170,1739292669237,-164.127336,0.000169,2]
[352755171,1739292669247,-164.127336,0.000169,2]
[352755172,1739292669260,-164.127336,0.000169,2]
[352755173,1739292669270,-151.0,0.000169,2]
[352755174,1739292669281,-151.0,0.000169,2]
[352755175,1739292669290,-151.0,0.000169,2]
[352755176,1739292669300,-164.127336,0.000169,2]
[352755177,1739292669310,-164.127336,0.000169,2]
[352755178,1739292669319,-164.127326,0.000169,2]
[352755179,1739292669329,-949.451014,0.000169,2]
[352755180,1739292669339,-949.451014,0.000169,2]
[352755181,1739292669349,-949.451014,0.000169,2]
[352755182,1739292669358,-949.451014,0.000169,2]
[352755183,1739292669368,-949.451014,0.000169,2]
[352755184,1739292669378,-949.451004,0.000169,2]
[352755185,1739292669387,-337.254953,0.000169,2]
[352755186,1739292669396,-337.254953,0.000169,2]
[352755187,1739292669406,-337.254953,0.000169,2]
[352755188,1739292669416,-337.254953,0.000169,2]
[352755189,1739292669425,-337.254953,0.000169,2]
[352755190,1739292669435,-337.254956,0.000169,2]
[352755191,1739292669445,-237.042097,0.000169,2]
[352755192,1739292669454,-237.042097,0.000169,2]
[352755193,1739292669464,-237.042097,0.000169,2]
[352755194,1739292669474,-237.042097,0.000169,2]
[352755195,1739292669484,-237.042097,0.000169,2]
[352755196,1739292669494,-237.04209,0.000169,2]
[352755197,1739292669504,-184.233011,0.000169,2]
[352755198,1739292669514,-184.233011,0.000169,2]
[352755199,1739292669524,-184.233011,0.000169,2]
[352755200,1739292669533,-184.233012,0.000169,2]
[352755201,1739292669543,-151.0,0.000169,2]
[352755202,1739292669552,-151.0,0.000169,2]
[352755203,1739292669562,-194.628952,0.000169,2]
[352755204,1739292669571,-194.628952,0.000169,2]
[352755205,1739292669581,-412.116862,0.000169,2]
[352755206,1739292669591,-412.116862,0.000169,2]
[352755207,1739292669600,-194.628952,0.000169,2]
[352755208,1739292669609,-194.628953,0.000169,2]
[352755209,1739292669620,-412.116862,0.000169,2]
[352755210,1739292669629,-412.116872,0.000169,2]
[352755211,1739292669638,-168.491744,0.000169,2]
[352755212,1739292669647,-168.491744,0.000169,2]
[352755213,1739292669657,-168.491744,0.000169,2]
[352755214,1739292669666,-168.491736,0.000169,2]
[352755215,1739292669675,-255.785126,0.000169,2]
[352755216,1739292669685,-255.785126,0.000169,2]
[352755217,1739292669694,-255.785126,0.000169,2]
[352755218,1739292669704,-255.785127,0.000169,2]
[352755219,1739292669713,-286.567375,0.000169,2]
[352755220,1739292669722,-150.0,0.000169,2]
[352755221,1739292669732,-1745.206006,0.000169,2]
[352755222,1739292669742,-1745.206006,0.000169,2]
[352755223,1739292669751,-1745.206006,0.000169,2]
[352755224,1739292669763,-1745.206016,0.000169,2]
[352755225,1739292669774,-5500.0,0.000169,2]
[352755226,1739292669783,-5500.0,0.000169,2]
[352755227,1739292669793,-5500.0,0.000169,2]
[352755228,1739292669802,-5500.0,0.000169,2]
[352755229,1739292669812,-536.015013,0.000169,2]
[352755230,1739292669822,-536.015013,0.000169,2]
[352755231,1739292669831,-536.015013,0.000169,2]
[352755232,1739292669840,-536.015022,0.000169,2]
[352755233,1739292669901,-617.67,0.00016922,2]
[352755234,1739292669911,-671.45,0.00016922,2]
[352755235,1739292669922,-929.9,0.00016922,2]
[352755236,1739292669931,-199.0,0.00016927,2]
[352755237,1739292669940,-424.57,0.00016929,2]
[352755238,1739292669953,-234.99,0.00016933,2]
[352755239,1739292669963,-344.78422355,0.0001696,2]
[352755240,1739292669972,-151.0,0.0001697,2]
[352755241,1739292669982,-320.50470785,0.00016979,2]
[352755242,1739292669991,-10395.55057901,0.00016981,3]
[352755243,1739292670000,-151.0,0.00016986,2]
[352755244,1739292670010,-151.0,0.00016986,2]
[352755245,1739292670020,-1043.727911,0.00016986,2]
[352755246,1739292670029,-152.411138,0.00016986,2]
[352755247,1739292670039,-151.0,0.00016986,2]
[352755248,1739292670048,-152.411138,0.00016986,2]
[352755249,1739292670058,-224.690787,0.00016986,2]
[352755250,1739292670067,-1232.861141,0.00016986,2]
[352755251,1739292670076,-500.0,0.00016986,2]
[352755252,1739292670085,-508.22290325,0.00016986,2]
[352755253,1739292670094,-244.25338276,0.00016986,2]
[352755254,1739292670104,-500.0,0.00016986,2]
[352755255,1739292670113,-500.0,0.00016986,2]
[352755256,1739292670122,-500.0,0.00016986,2]
[352755257,1739292670131,-492.89,0.00016986,2]
[352755258,1739292670141,-500.0,0.00016986,2]
[352755259,1739292670150,-658.54,0.00016986,2]
[352755260,1739292670160,-500.0,0.00016986,2]
[352755261,1739292670169,-500.0,0.00016986,2]
[352755262,1739292670178,-500.0,0.00016986,2]
[352755263,1739292670187,-299.42826396,0.00016986,2]
[352755264,1739292670196,-500.0,0.00016986,2]
[352755265,1739292670206,-500.0,0.00016986,2]
[352755266,1739292670216,-500.0,0.00016986,2]
[352755267,1739292670225,-500.0,0.00016986,2]
[352755268,1739292670234,-500.0,0.00016986,2]
[352755269,1739292670243,-500.0,0.00016986,2]
[352755270,1739292670252,-500.0,0.00016986,2]
[352755271,1739292670263,-500.0,0.00016986,2]
[352755272,1739292670272,-500.0,0.00016986,2]
[352755273,1739292670281,-708.99,0.00016986,2]
[352755274,1739292670290,-500.0,0.00016986,2]
[352755275,1739292670299,-500.0,0.00016986,2]
[352755276,1739292670309,-500.0,0.00016986,2]
[352755277,1739292670318,-500.0,0.00016986,2]
[352755278,1739292670327,-500.0,0.00016986,2]
[352755279,1739292670336,-620.8,0.00016986,2]
[352755280,1739292670345,-500.0,0.00016986,2]
[352755281,1739292670354,-500.0,0.00016986,2]
[352755282,1739292670363,-500.0,0.00016986,2]
[352755283,1739292670372,-616.82,0.00016986,2]
[352755284,1739292670382,-533.34,0.00016986,2]
[352755285,1739292670391,-500.0,0.00016986,2]
[352755286,1739292670400,-512.37,0.00016986,2]
[352755287,1739292670409,-500.0,0.00016986,2]
[352755288,1739292670418,-500.0,0.00016986,2]
[352755289,1739292670427,-626.01,0.00016986,2]
[352755290,1739292670437,-500.0,0.00016986,2]
[352755291,1739292670446,-593.14,0.00016986,2]
[352755292,1739292670455,-500.0,0.00016986,2]
[352755293,1739292670464,-681.21,0.00016986,2]
[352755294,1739292670474,-500.0,0.00016986,2]
[352755295,1739292670483,-500.0,0.00016986,2]
[352755296,1739292670492,-500.0,0.00016986,2]
[352755297,1739292670502,-565.98,0.00016986,2]
[352755298,1739292670513,-500.0,0.00016986,2]
[352755299,1739292670522,-610.07,0.00016986,2]
[352755300,1739292670531,-500.0,0.00016986,2]
[352755301,1739292670540,-500.0,0.00016986,2]
[352755302,1739292670549,-500.0,0.00016986,2]
[352755303,1739292670559,-653.33,0.00016986,2]
[352755304,1739292670567,-500.0,0.00016986,2]
[352755305,1739292670577,-500.0,0.00016986,2]
[352755306,1739292670586,-500.0,0.00016986,2]
[352755307,1739292670595,-500.0,0.00016986,2]
[352755308,1739292670604,-500.0,0.00016986,2]
[352755309,1739292670613,-575.35,0.00016986,2]
[352755310,1739292670622,-543.76,0.00016986,2]
[352755311,1739292670631,-500.0,0.00016986,2]
[352755312,1739292670640,-560.98,0.00016986,2]
[352755313,1739292670649,-561.09651735,0.00016986,2]
[352755314,1739292670658,-500.0,0.00016986,2]
[352755315,1739292670668,-500.0,0.00016986,2]
[352755316,1739292670677,-500.0,0.00016986,2]
[352755317,1739292670686,-500.0,0.00016986,2]
[352755318,1739292670695,-504.72,0.00016986,2]
[352755319,1739292670705,-500.0,0.00016986,2]
[352755320,1739292670714,-500.0,0.00016986,2]
[352755321,1739292670723,-721.21,0.00016986,2]
[352755322,1739292670732,-500.0,0.00016986,2]
[352755323,1739292670742,-500.0,0.00016986,2]
[352755324,1739292670752,-500.0,0.00016986,2]
[352755325,1739292670762,-410.85,0.00016986,2]
[352755326,1739292670771,-500.0,0.00016986,2]
[352755327,1739292670780,-500.0,0.00016986,2]
[352755328,1739292670790,-686.28,0.00016986,2]
[352755329,1739292670799,-500.0,0.00016986,2]
[352755330,1739292670809,-500.0,0.00016986,2]
[352755331,1739292670818,-628.87,0.00016986,2]
[352755332,1739292670827,-500.0,0.00016986,2]
[352755333,1739292670836,-500.0,0.00016986,2]
[352755334,1739292670846,-500.0,0.00016986,2]
[352755335,1739292670855,-656.08,0.00016986,2]
[352755336,1739292670864,-500.0,0.00016986,2]
[352755337,1739292670876,-500.0,0.00016986,2]
[352755338,1739292670885,-973.03,0.00016986,2]
[352755339,1739292670894,-769.16,0.00016986,2]
[352755340,1739292670903,-500.0,0.00016986,2]
[352755341,1739292670912,-500.0,0.00016986,2]
[352755342,1739292670922,-500.0,0.00016986,2]
[352755343,1739292670931,-500.0,0.00016986,2]
[352755344,1739292670940,-500.0,0.00016986,2]
[352755345,1739292670950,-2633.29,0.00016986,2]
[352755346,1739292670961,-500.0,0.00016986,2]
[352755347,1739292670970,-608.46,0.00016986,2]
[352755348,1739292670979,-500.0,0.00016986,2]
[352755349,1739292670988,-500.0,0.00016986,2]
[352755350,1739292670997,-562.42,0.00016986,2]
[352755351,1739292671006,-702.19,0.00016986,2]
[352755352,1739292671016,-500.0,0.00016986,2]
[352755353,1739292671025,-603.78,0.00016986,2]
[352755354,1739292671034,-500.0,0.00016986,2]
[352755355,1739292671044,-500.0,0.00016986,2]
[352755356,1739292671053,-500.0,0.00016986,2]
[352755357,1739292671063,-500.0,0.00016986,2]
[352755358,1739292671072,-500.0,0.00016986,2]
[352755359,1739292671080,-428.33631095,0.00016986,2]
[352755360,1739292671090,-500.0,0.00016986,2]
[352755361,1739292671099,-500.0,0.00016986,2]
[352755362,1739292671108,-500.0,0.00016986,2]
[352755363,1739292671117,-521.19,0.00016986,2]
[352755364,1739292671127,-1362.81,0.00016986,2]
[352755365,1739292671136,-500.0,0.00016986,2]
[352755366,1739292671146,-500.0,0.00016986,2]
[352755367,1739292671155,-500.0,0.00016986,2]
[352755368,1739292671164,-557.52,0.00016986,2]
[352755369,1739292671173,-1147.2,0.00016986,2]
[352755370,1739292671182,-500.0,0.00016986,2]
[352755371,1739292671192,-500.0,0.00016986,2]
[352755372,1739292671201,-500.0,0.00016986,2]
[352755373,1739292671211,-500.0,0.00016986,2]
[352755374,1739292671219,-681.22,0.00016986,2]
[352755375,1739292671230,-500.0,0.00016986,2]
[352755376,1739292671239,-765.29,0.00016986,2]
[352755377,1739292671248,-500.0,0.00016986,2]
[352755378,1739292671259,-500.0,0.00016986,2]
[352755379,1739292671270,-500.0,0.00016986,2]
[352755380,1739292671280,-500.0,0.00016986,2]
[352755381,1739292671290,-500.0,0.00016986,2]
[352755382,1739292671299,-500.0,0.00016986,2]
[352755383,1739292671308,-659.27,0.00016986,2]
[352755384,1739292671318,-500.0,0.00016986,2]
[352755385,1739292671327,-571.46,0.00016986,2]
[352755386,1739292671336,-500.0,0.00016986,2]
[352755387,1739292671346,-500.0,0.00016986,2]
[352755388,1739292671355,-500.0,0.00016986,2]
[352755389,1739292671364,-567.07,0.00016986,2]
[352755390,1739292671374,-500.0,0.00016986,2]
[352755391,1739292671383,-500.0,0.00016986,2]
[352755392,1739292671392,-1328.94,0.00016986,2]
[352755393,1739292671401,-702.14,0.00016986,2]
[352755394,1739292671410,-585.91274057,0.00016986,2]
[352755395,1739292671419,-500.0,0.00016986,2]
[352755396,1739292671437,-500.0,0.00016986,2]
[352755397,1739292671461,-569.71,0.00016986,2]
[352755398,1739292671485,-653.21,0.00016986,2]
[352755399,1739292671507,-500.0,0.00016986,2]
[352755400,1739292671552,-500.0,0.00016986,2]
[352755401,1739292671585,-505.62,0.00016986,2]
[352755402,1739292671610,-781.92,0.00016986,2]
[352755403,1739292671621,-500.0,0.00016986,2]
[352755404,1739292671631,-500.0,0.00016986,2]
[352755405,1739292671640,-500.0,0.00016986,2]
[352755406,1739292671650,-768.57,0.00016986,2]
[352755407,1739292671658,-733.07,0.00016986,2]
[352755408,1739292671668,-500.0,0.00016986,2]
[352755409,1739292671677,-500.0,0.00016986,2]
[352755410,1739292671686,-607.06,0.00016986,2]
[352755411,1739292671695,-708.15,0.00016986,2]
[352755412,1739292671704,-500.0,0.00016986,2]
[352755413,1739292671713,-1118.08,0.00016986,2]
[352755414,1739292671722,-500.0,0.00016986,2]
[352755415,1739292671731,-500.0,0.00016986,2]
[352755416,1739292671740,-500.0,0.00016986,2]
[352755417,1739292671749,-1638.68,0.00016986,2]
[352755418,1739292671759,-500.0,0.00016986,2]
[352755419,1739292671769,-500.0,0.00016986,2]
[352755420,1739292671779,-500.0,0.00016986,2]
[352755421,1739292671788,-972.23,0.00016986,2]
[352755422,1739292671797,-500.0,0.00016986,2]
[352755423,1739292671805,-1025.95,0.00016986,2]
[352755424,1739292671814,-849.42,0.00016986,2]
[352755425,1739292671823,-589.34,0.00016986,2]
[352755426,1739292671832,-500.0,0.00016986,2]
[352755427,1739292671841,-623.19,0.00016986,2]
[352755428,1739292671850,-949.12,0.00016986,2]
[352755429,1739292671859,-774.19,0.00016986,2]
[352755430,1739292671871,-592.84,0.00016986,2]
[352755431,1739292671884,-897.44,0.00016986,2]
[352755432,1739292671893,-500.0,0.00016986,2]
[352755433,1739292671903,-1236.71,0.00016986,2]
[352755434,1739292671912,-500.0,0.00016986,2]
[352755435,1739292671923,-1146.12,0.00016986,2]
[352755436,1739292671932,-877.02,0.00016986,2]
[352755437,1739292671942,-500.0,0.00016986,2]
[352755438,1739292671951,-277.3,0.00016986,2]
[352755439,1739292671960,-500.0,0.00016986,2]
[352755440,1739292671970,-636.96,0.00016986,2]
[352755441,1739292671979,-500.0,0.00016986,2]
[352755442,1739292671988,-500.0,0.00016986,2]
[352755443,1739292671998,-851.21,0.00016986,2]
[352755444,1739292672008,-1026.57,0.00016986,2]
[352755445,1739292672018,-1722.06,0.00016986,2]
[352755446,1739292672028,-755.82,0.00016986,2]
[352755447,1739292672037,-500.0,0.00016986,2]
[352755448,1739292672046,-500.0,0.00016986,2]
[352755449,1739292672055,-500.0,0.00016986,2]
[352755450,1739292672064,-500.0,0.00016986,2]
[352755451,1739292672073,-1007.91,0.00016986,2]
[352755452,1739292672082,-1556.32,0.00016986,2]
[352755453,1739292672091,-743.69,0.00016986,2]
[352755454,1739292672102,-288.26008034,0.00016986,2]
[352755455,1739292672112,-787.8,0.00016986,2]
[352755456,1739292672121,-500.0,0.00016986,2]
[352755457,1739292672131,-775.23,0.00016986,2]
[352755458,1739292672141,-500.0,0.00016986,2]
[352755459,1739292672152,-3453.19,0.00016986,2]
[352755460,1739292672163,-1296.08,0.00016986,2]
[352755461,1739292672174,-343.44495456,0.00016986,2]
[352755462,1739292672185,-1077.77,0.00016986,2]
[352755463,1739292672196,-903.8,0.00016986,2]
[352755464,1739292672207,-1620.87,0.00016986,2]
[352755465,1739292672218,-500.0,0.00016986,2]
[352755466,1739292672228,-1360.37,0.00016986,2]
[352755467,1739292672237,-871.16,0.00016986,2]
[352755468,1739292672248,-1044.51,0.00016986,2]
[352755469,1739292672261,-500.0,0.00016986,2]
[352755470,1739292672271,-1892.93,0.00016986,2]
[352755471,1739292672283,-1187.32,0.00016986,2]
[352755472,1739292672294,-1128.96,0.00016986,2]
[352755473,1739292672304,-500.0,0.00016986,2]
[352755474,1739292672315,-1085.95,0.00016986,2]
[352755475,1739292672325,-664.21,0.00016986,2]
[352755476,1739292672334,-831.29,0.00016986,2]
[352755477,1739292672343,-1315.41,0.00016986,2]
[352755478,1739292672354,-500.0,0.00016986,2]
[352755479,1739292672365,-1449.55,0.00016986,2]
[352755480,1739292672375,-1736.09,0.00016986,2]
[352755481,1739292672385,-792.28,0.00016986,2]
[352755482,1739292672395,-1153.98,0.00016986,2]
[352755483,1739292672404,-424.44528753,0.00016986,2]
[352755484,1739292672414,-500.0,0.00016986,2]
[352755485,1739292672424,-500.0,0.00016986,2]
[352755486,1739292672433,-1628.97,0.00016986,2]
[352755487,1739292672443,-1363.01,0.00016986,2]
[352755488,1739292672453,-2696.96,0.00016986,2]
[352755489,1739292672464,-500.0,0.00016986,2]
[352755490,1739292672474,-1143.92,0.00016986,2]
[352755491,1739292672483,-628.01,0.00016986,2]
[352755492,1739292672494,-500.0,0.00016986,2]
[352755493,1739292672504,-1164.3,0.00016986,2]
[352755494,1739292672518,-500.0,0.00016986,2]
[352755495,1739292672527,-1186.05,0.00016986,2]
[352755496,1739292672536,-1316.05,0.00016986,2]
[352755497,1739292672546,-500.0,0.00016986,2]
[352755498,1739292672556,-507.5,0.00016986,2]
[352755499,1739292672565,-1204.14,0.00016986,2]
[352755500,1739292672575,-500.0,0.00016986,2]
[352755501,1739292672585,-500.0,0.00016986,2]
[352755502,1739292672595,-2709.34,0.00016986,2]
[352755503,1739292672605,-2432.62,0.00016986,2]
[352755504,1739292672616,-1383.14,0.00016986,2]
[352755505,1739292672626,-1113.99,0.00016986,2]
[352755506,1739292672635,-516.51,0.00016986,2]
[352755507,1739292672645,-770.35,0.00016986,2]
[352755508,1739292672654,-3406.84,0.00016986,2]
[352755509,1739292672664,-1152.94,0.00016986,2]
[352755510,1739292672673,-1081.2,0.00016986,2]
[352755511,1739292672683,-694.27,0.00016986,2]
[352755512,1739292672692,-500.0,0.00016986,2]
[352755513,1739292672702,-2107.97,0.00016986,2]
[352755514,1739292672711,-1266.65,0.00016986,2]
[352755515,1739292672720,-500.0,0.00016986,2]
[352755516,1739292672729,-500.0,0.00016986,2]
[352755517,1739292672738,-517.54,0.00016986,2]
[352755518,1739292672747,-1409.01,0.00016986,2]
[352755519,1739292672757,-760.33,0.00016986,2]
[352755520,1739292672769,-1622.42,0.00016986,2]
[352755521,1739292672778,-908.49,0.00016986,2]
[352755522,1739292672789,-500.0,0.00016986,2]
[352755523,1739292672798,-500.0,0.00016986,2]
[352755524,1739292672807,-500.0,0.00016986,2]
[352755525,1739292672817,-1394.87,0.00016986,2]
[352755526,1739292672827,-1146.54,0.00016986,2]
[352755527,1739292672836,-2904.03,0.00016986,2]
[352755528,1739292672846,-881.37,0.00016986,2]
[352755529,1739292672856,-500.0,0.00016986,2]
[352755530,1739292672866,-581.55,0.00016986,2]
[352755531,1739292672880,-1246.46,0.00016986,2]
[352755532,1739292672891,-500.0,0.00016986,2]
[352755533,1739292672901,-963.63,0.00016986,2]
[352755534,1739292672912,-500.0,0.00016986,2]
[352755535,1739292672921,-500.0,0.00016986,2]
[352755536,1739292672932,-500.0,0.00016986,2]
[352755537,1739292672941,-500.0,0.00016986,2]
[352755538,1739292672953,-500.0,0.00016986,2]
[352755539,1739292672964,-1035.86,0.00016986,2]
[352755540,1739292672975,-1186.79,0.00016986,2]
[352755541,1739292672985,-1512.18,0.00016986,2]
[352755542,1739292672995,-718.14,0.00016986,2]
[352755543,1739292673005,-500.0,0.00016986,2]
[352755544,1739292673018,-1350.44,0.00016986,2]
[352755545,1739292673036,-500.0,0.00016986,2]
[352755546,1739292673046,-1320.12,0.00016986,2]
[352755547,1739292673056,-500.0,0.00016986,2]
[352755548,1739292673066,-668.38,0.00016986,2]
[352755549,1739292673076,-500.0,0.00016986,2]
[352755550,1739292673086,-500.0,0.00016986,2]
[352755551,1739292673097,-500.0,0.00016986,2]
[352755552,1739292673107,-862.44,0.00016986,2]
[352755553,1739292673118,-1589.93,0.00016986,2]
[352755554,1739292673128,-985.84,0.00016986,2]
[352755555,1739292673139,-1153.41,0.00016986,2]
[352755556,1739292673149,-1534.98,0.00016986,2]
[352755557,1739292673160,-500.0,0.00016986,2]
[352755558,1739292673170,-500.0,0.00016986,2]
[352755559,1739292673181,-1581.96,0.00016986,2]
[352755560,1739292673192,-1598.66,0.00016986,2]
[352755561,1739292673202,-761.15,0.00016986,2]
[352755562,1739292673212,-500.0,0.00016986,2]
[352755563,1739292673222,-737.13,0.00016986,2]
[352755564,1739292673232,-1270.11,0.00016986,2]
[352755565,1739292673242,-992.82,0.00016986,2]
[352755566,1739292673252,-500.0,0.00016986,2]
[352755567,1739292673265,-1121.5,0.00016986,2]
[352755568,1739292673275,-824.99,0.00016986,2]
[352755569,1739292673285,-500.0,0.00016986,2]
[352755570,1739292673294,-1979.99,0.00016986,2]
[352755571,1739292673305,-500.0,0.00016986,2]
[352755572,1739292673315,-1201.69,0.00016986,2]
[352755573,1739292673325,-500.0,0.00016986,2]
[352755574,1739292673335,-500.0,0.00016986,2]
[352755575,1739292673345,-635.61,0.00016986,2]
[352755576,1739292673356,-812.69,0.00016986,2]
[352755577,1739292673366,-500.0,0.00016986,2]
[352755578,1739292673376,-500.0,0.00016986,2]
[352755579,1739292673386,-1168.66,0.00016986,2]
[352755580,1739292673396,-1000.0,0.00016986,2]
[352755581,1739292673406,-2251.11,0.00016986,2]
[352755582,1739292673416,-635.05,0.00016986,2]
[352755583,1739292673426,-2094.0,0.00017,2]
[352755584,1739292673436,-10000.0,0.00017,7]
[352755585,1739292673446,-1000.0,0.00017,13]
[352755586,1739292673455,-900.0,0.00017,18]
[352755587,1739292673465,-33800.0,0.00017,20]
[352755588,1739292673475,-900.0,0.00017,4]
[352755589,1739292673485,-1500.0,0.00017,2]
[352755590,1739292673496,-650.0,0.00017,2]
[352755591,1739292673507,-756.42,0.0001702,2]
[352755592,1739292673520,-666.6,0.00017028,2]
[352755593,1739292673531,-150.0,0.0001704,2]
[352755594,1739292673541,-617.67,0.00017059,2]
[352755595,1739292673552,-671.45,0.00017059,2]
[352755596,1739292673562,-929.9,0.00017059,2]
[352755597,1739292673575,-151.0,0.00017123,2]
[352755598,1739292673586,-151.0,0.00017123,2]
[352755599,1739292673596,-230.271269,0.00017123,2]
[352755600,1739292673606,-1043.727911,0.00017123,2]
[352755601,1739292673616,-152.411138,0.00017123,2]
[352755602,1739292673625,-151.0,0.00017123,2]
[352755603,1739292673635,-152.411129,0.00017123,2]
[352755604,1739292673645,-1232.861141,0.00017123,2]
[352755605,1739292673654,-150.503094,0.00017123,2]
[352755606,1739292673666,-500.0,0.00017123,2]
[352755607,1739292673675,-500.0,0.00017123,2]
[352755608,1739292673685,-500.0,0.00017123,2]
[352755609,1739292673695,-500.0,0.00017123,2]
[352755610,1739292673706,-500.0,0.00017123,2]
[352755611,1739292673715,-658.54,0.00017123,2]
[352755612,1739292673725,-500.0,0.00017123,2]
[352755613,1739292673734,-500.0,0.00017123,2]
[352755614,1739292673744,-331.61021267,0.00017123,2]
[352755615,1739292673754,-500.0,0.00017123,2]
[352755616,1739292673765,-500.0,0.00017123,2]
[352755617,1739292673775,-500.0,0.00017123,2]
[352755618,1739292673785,-500.0,0.00017123,2]
[352755619,1739292673795,-500.0,0.00017123,2]
[352755620,1739292673805,-500.0,0.00017123,2]
[352755621,1739292673816,-500.0,0.00017123,2]
[352755622,1739292673826,-500.0,0.00017123,2]
[352755623,1739292673836,-500.0,0.00017123,2]
[352755624,1739292673846,-708.99,0.00017123,2]
[352755625,1739292673855,-457.81,0.00017123,2]
[352755626,1739292673865,-500.0,0.00017123,2]
[352755627,1739292673876,-500.0,0.00017123,2]
[352755628,1739292673887,-500.0,0.00017123,2]
[352755629,1739292673897,-620.8,0.00017123,2]
[352755630,1739292673907,-500.0,0.00017123,2]
[352755631,1739292673918,-500.0,0.00017123,2]
[352755632,1739292673928,-500.0,0.00017123,2]
[352755633,1739292673938,-616.82,0.00017123,2]
[352755634,1739292673948,-533.34,0.00017123,2]
[352755635,1739292673960,-500.0,0.00017123,2]
[352755636,1739292673974,-512.37,0.00017123,2]
[352755637,1739292673985,-500.0,0.00017123,2]
[352755638,1739292673996,-500.0,0.00017123,2]
[352755639,1739292674007,-626.01,0.00017123,2]
[352755640,1739292674023,-500.0,0.00017123,2]
[352755641,1739292674035,-593.14,0.00017123,2]
[352755642,1739292674047,-585.98864796,0.00017123,2]
[352755643,1739292674057,-681.21,0.00017123,2]
[352755644,1739292674067,-375.0,0.00017123,2]